Cogmind - Beta 12 @@@ ROGUE MODE // 2023.03.26 @ 23:17:43 // Winter2019/RPGLIKE Player: ArabianSandBoa Result: Destroyed by G-34 Mercenary with Small Laser Performance ------------- Evolutions (0) 0 Regions Visited (4) 800 Robots Destroyed (42) 210 Value Destroyed (1466) 1466 Prototype IDs (29) 580 Alien Tech Used (0) 0 Bonus (292) 292 TOTAL SCORE: 3348 Bonus ------- High Alert Combat Kills 73 Aligned with FarCom 300 Friendly Fire -81 Cogmind --------- Core Integrity 0/600 Matter 206/300 Energy 150/150 System Corruption 0% Temperature Cool (6) Movement Flying (37) Location -9/Mines Parts ------- > --- POWER (1) -------- Micro Nuclear Core > --- PROPULSION (3) --- Flight Unit Xenon Bombardment Thruster > --- UTILITY (4) ------ Experimental Sensor Array Improved Melee Analysis Suite Microactuators Hacking Suite > --- WEAPON (1) ------- Powered Hammer > --- INVENTORY (3) ---- Superbattery (1500) Flak Gun Plasma Cutter Peak State ------------ > --- POWER ------------ Micro Nuclear Core > --- PROPULSION ------- Flight Unit Xenon Bombardment Thruster > --- UTILITY ---------- Experimental Sensor Array Improved Melee Analysis Suite Microactuators Hacking Suite > --- WEAPON ----------- Powered Hammer > --- INVENTORY -------- Light Ion Engine Superbattery Plasma Cutter [Rating: 34] Favorites ----------- Power Light Ion Engine Engine Light Ion Engine Power Core Micro Nuclear Core Propulsion Flight Unit Leg Aluminum Leg Flight Unit Flight Unit Utility Signal Interpreter Device Sensor Array Storage Superbattery Processor Signal Interpreter Hackware Hacking Suite Weapon Light Cannon Energy Cannon Advanced Beam Cannon Ballistic Gun Light Assault Rifle Ballistic Cannon Light Cannon Launcher Grenade Launcher Special Weapon Plasma Cutter Impact Weapon Powered Hammer Build | -11 -10 -10 -10 -9 ------- Run | Jun Mat Min Exi Min Slots Evolved 5 | . 4 1 . . Power . | . . . . . Propulsion 2 | . 2 . . . Utility 3 | . 2 1 . . Weapon . | . . . . . Parts Attached 25 | . 12 2 1 10 Power 2 | . 1 . . 1 Engine 1 | . 1 . . . Core 1 | . . . . 1 Reactor . | . . . . . Propulsion 4 | . 2 . . 2 Treads . | . . . . . Leg . | . . . . . Wheel . | . . . . . Hover . | . . . . . Flight 4 | . 2 . . 2 Utility 10 | . 4 2 1 3 Device 6 | . 2 2 . 2 Storage 1 | . . . 1 . Processor 2 | . 1 . . 1 Hackware 1 | . 1 . . . Protection . | . . . . . Artifact . | . . . . . Weapon 9 | . 5 . . 4 Energy Gun . | . . . . . Energy Cannon 1 | . 1 . . . Ballistic Gun 1 | . 1 . . . Ballistic Cannon 3 | . 1 . . 2 Launcher 2 | . 2 . . . Special Weapon 1 | . . . . 1 Impact Weapon 1 | . . . . 1 Slashing Weapon . | . . . . . Piercing Weapon . | . . . . . Special Melee Weapon . | . . . . . Unidentified Prototypes 2 | . 1 1 . . Parts Lost 1 | . . . . 1 Power . | . . . . . Propulsion 1 | . . . . 1 Utility . | . . . . . Weapon . | . . . . . Highest Loss Streak 1 | . . . . 1 To Critical Strikes . | . . . . . Average Slot Usage (%) 65 | . 52 86 87 77 Engine 7 | . 5 11 11 8 Flight 15 | . 11 22 22 16 Device 12 | . 9 19 16 14 Processor 10 | . 9 11 11 11 Hackware 6 | . 2 11 11 11 Ballistic Gun 1 | . 1 . . . Ballistic Cannon 5 | . 1 11 11 8 Launcher 4 | . 8 . . . Naked Turns 1 | . 1 . . . Heaviest Build 12 | 5 7 10 11 12 Greatest Support 15 | 10 13 13 13 15 Greatest Overweight (x) 1 | . 1 . . 1 Average Overweight (x) . | . . . . . Largest Inventory Capacity 3 | . . . 3 3 Average Capacity . | . . . 1 3 Most Carried 3 | . . . 1 3 Average Carried . | . . . . 2 Final Capacity 3 | . . . 3 3 Final Carried 3 | . . . 1 3 Class Distribution -------------------- 62% | Hacker-Mutant 25% | Mutant 11% | Hacker-Scout Dominant Class ---------------- Hacker-Mutant | -10/Materials Hacker-Mutant | -10/Mines Hacker-Mutant | -10/Exiles Hacker-Scout | -9/Mines Resources | -11 -10 -10 -10 -9 ----------- Run | Jun Mat Min Exi Min Matter Collected 1184 | 200 702 163 10 109 Remotely . | . . . . . Salvage Created 624 | . 308 123 . 193 Parts 63 | . 34 10 . 19 Haulers Intercepted 2 | . 2 . . . Recyclers Shooed . | . . . . . Parts Field Recycled . | . . . . . Retrieved Matter . | . . . . . Parts Self-Destructed . | . . . . . Prevented . | . . . . . Kills | -11 -10 -10 -10 -9 ------- Run | Jun Mat Min Exi Min Combat Hostiles Destroyed 28 | . 16 2 . 10 Melee 4 | . . . . 4 Cannons 5 | . . 2 . 3 AOE 18 | . 16 . . 2 Classes Destroyed 9 | . 7 1 . 1 Worker 1 | . 1 . . . Builder 4 | . 2 2 . . Tunneler 1 | . . . . 1 Hauler 2 | . 2 . . . Recycler 1 | . . 1 . . Operator 2 | . 2 . . . Watcher 3 | . 3 . . . Swarmer 3 | . 3 . . . Grunt 25 | . 13 2 . 10 Best Kill Streak 5 | . 5 2 . 5 Combat Bots Only 5 | . 5 2 . 5 Max Kills in Single Turn 2 | . 2 1 . 2 Gunslinging . | . . . . . Exploded 2 | . 2 . . 2 Melee 1 | . . . . 1 Uniques/NPCs Destroyed . | . . . . . Combat | -11 -10 -10 -10 -9 -------- Run | Jun Mat Min Exi Min Damage Taken 1456 | . 525 62 . 869 Core 1261 | . 463 59 . 739 Absorbed by Shields . | . . . . . Redirected to Core 625 | . 194 12 . 419 Core Remaining (%) 100 | 100 . . . . Volleys Fired 147 | . 87 33 . 27 Largest 1 | . 1 1 . 1 Hottest 39 | . 35 35 . 39 Shots Fired 147 | . 87 33 . 27 Gun 25 | . 25 . . . Cannon 69 | . 9 33 . 27 Launcher 53 | . 53 . . . Special . | . . . . . Kinetic 94 | . 34 33 . 27 Thermal . | . . . . . Explosive 53 | . 53 . . . Electromagnetic . | . . . . . Robot Hit Streak 9 | . 5 9 . 6 Robot Miss Streak 3 | . 3 3 . 1 Penetration Max . | . . . . . Secondary Targets . | . . . . . Shots Hit Robots 64 | . 20 16 . 28 Core Hits 58 | . 39 7 . 12 Critical Kills . | . . . . . Critical Parts Destroyed 1 | . . . . 1 Critical Strikes 1 | . . . . 1 Smash 1 | . . . . 1 Melee Attacks 13 | . . . . 13 Impact 13 | . . . . 13 Slashing . | . . . . . Piercing . | . . . . . Sneak Attacks . | . . . . . Combat Hostiles . | . . . . . Follow-up Attacks . | . . . . . Damage Inflicted 3138 | . 1736 389 . 1013 Guns 97 | . 97 . . . Cannons 685 | . 19 322 . 344 Explosions 1766 | . 1620 67 . 79 Melee 590 | . . . . 590 Ramming . | . . . . . Kinetic 782 | . 116 322 . 344 Thermal 146 | . . 67 . 79 Explosive 1620 | . 1620 . . . Electromagnetic . | . . . . . Impact 590 | . . . . 590 Slashing . | . . . . . Piercing . | . . . . . Highest Corruption . | . . . . . Average Corruption . | . . . . . Corruption Purged . | . . . . . Corruption Blocked . | . . . . . Overload Shots . | . . . . . Overflow Damage 152 | . 23 . . 129 Projectiles . | . . . . . Explosions 23 | . 23 . . . Melee 129 | . . . . 129 Knockbacks 7 | . . 6 . 1 Impact 1 | . . . . 1 Kinetic 5 | . . 5 . . Secondary 1 | . . 1 . . Self-Inflicted Damage 280 | . 280 . . . Shots 11 | . 11 . . . Rammed . | . . . . . Targets Rammed . | . . . . . Kicked . | . . . . . Crushed . | . . . . . Highest Temperature 183 | . 7 27 . 183 Average Temperature 35 | . 2 11 . 75 Received Heat Transfer 645 | . 93 36 . 516 Siege Activations . | . . . . . Robots Corrupted . | . . . . . Combat Hostiles . | . . . . . Parts Fried 1 | . . . . 1 Impact Corruptions 4 | . . . . 4 Robots Melted . | . . . . . Combat Hostiles . | . . . . . Parts Melted 1 | . . . . 1 Heat Transferred 300 | . . 100 . 200 Parts Sabotaged . | . . . . . Parts Stolen . | . . . . . Parts Stripped . | . . . . . Power Chain Reactions 1 | . 1 . . . Missiles Intercepted . | . . . . . Alert | -11 -10 -10 -10 -9 ------- Run | Jun Mat Min Exi Min Peak Influence 732 | . 732 499 . 518 Initial 279 | . . 279 . . Average 368 | . 403 365 . 187 Maximum Alert Level 3 | . 3 2 . 2 Low Security (%) 18 | . 20 . . 48 Level 1 37 | . 27 59 . 41 Level 2 38 | . 43 40 . 9 Level 3 5 | . 8 . . . Level 4 . | . . . . . Level 5 . | . . . . . High Security . | . . . . . Max Security . | . . . . . Squads Dispatched 5 | . 5 . . . Investigation 5 | . 5 . . . Extermination . | . . . . . Reinforcement . | . . . . . Assault . | . . . . . Garrison . | . . . . . Intercept . | . . . . . Searches Triggered . | . . . . . Construction Impeded . | . . . . . Haulers Reinforced . | . . . . . Active Scanning Responses . | . . . . . Cargo Convoy Interrupts . | . . . . . Stealth | -11 -10 -10 -10 -9 --------- Run | Jun Mat Min Exi Min Distress Signals 1 | . 1 . . . Communications Jammed . | . . . . . Distress Signals . | . . . . . Times Spotted 51 | . 26 2 . 23 Peak Tracking Total 9 | . 4 2 . 9 Tactical Retreats 6 | . 1 . . 5 Traps | -11 -10 -10 -10 -9 ------- Run | Jun Mat Min Exi Min Traps Triggered . | . . . . . Indirectly . | . . . . . Trap Hack Attempts . | . . . . . Triggered . | . . . . . Disarmed . | . . . . . Reprogrammed 2 | . 2 . . . Reused 1 | . 1 . . . Traps Extracted . | . . . . . Installed . | . . . . . Triggered 1 | . 1 . . . Machines | -11 -10 -10 -10 -9 ---------- Run | Jun Mat Min Exi Min Machines Disabled 38 | . 25 9 . 4 Max in Single Turn 2 | . 2 2 . 2 Machines Repaired . | . . . . . Machines Sabotaged . | . . . . . Overloaded Fab Kills . | . . . . . Hacking | -11 -10 -10 -10 -9 --------- Run | Jun Mat Min Exi Min Machines Accessed 12 | . 9 1 1 1 Terminals 9 | . 8 1 . . Fabricators . | . . . . . Repair Stations . | . . . . . Recycling Units 1 | . 1 . . . Scanalyzers . | . . . . . Garrison Access . | . . . . . Total Hacks 60 | . 55 3 1 1 Successful 42 | . 37 3 1 1 Failed 17 | . 17 . . . Catastrophic 2 | . 2 . . . Database Lockouts 1 | . 1 . . . Manual 21 | . 19 1 1 . Terminals 53 | . 50 3 . . Fabricators . | . . . . . Repair Stations . | . . . . . Recycling Units 5 | . 5 . . . Scanalyzers . | . . . . . Garrison Access . | . . . . . Terminal Hacks 31 | . 27 2 1 1 Record 5 | . 3 2 . . Robot Analysis 4 | . 4 . . . Prototype ID Bank 3 | . 3 . . . Open Door 1 | . . . . 1 Level Access Points 1 | . 1 . . . Branch Access Points 1 | . 1 . . . Emergency Access Points 1 | . 1 . . . Terminal Index 1 | . 1 . . . Alert Level 2 | . 2 . . . Unreport Threat 2 | . 2 . . . Locate Traps 1 | . 1 . . . Reprogram Traps 2 | . 2 . . . Surveillance Status 1 | . 1 . . . Transport Status 1 | . 1 . . . Hauler Manifests 1 | . 1 . . . Registered Prototypes 1 | . 1 . . . Zone Layout 2 | . 2 . . . EX-Prototype ID Bank 1 | . . . 1 . Fabricator Hacks . | . . . . . Repair Station Hacks . | . . . . . Recycling Unit Hacks 1 | . 1 . . . Report Inventory 1 | . 1 . . . Scanalyzer . | . . . . . Garrison Access Hacks . | . . . . . Unauthorized Hacks 10 | . 9 1 . . Terminals 7 | . 6 1 . . Assimilate 1 | . 1 . . . Botnet 3 | . 3 . . . Disrupt 1 | . . 1 . . Sabotage 2 | . 2 . . . Fabricators . | . . . . . Repair Stations . | . . . . . Recycling Units 3 | . 3 . . . Reject 1 | . 1 . . . Mask 1 | . 1 . . . Tunnel 1 | . 1 . . . Scanalyzers . | . . . . . Garrison Access . | . . . . . Data Cores Recovered . | . . . . . Used . | . . . . . Hacking Detections 8 | . 7 1 . . Full Trace Events 4 | . 4 . . . Feedback Events . | . . . . . Feedback Blocked . | . . . . . Robot Schematics Acquired . | . . . . . Robots Built . | . . . . . Authchips . | . . . . . Time . | . . . . . Total Robot Build Rating . | . . . . . Part Schematics Acquired . | . . . . . Parts Built . | . . . . . Authchips . | . . . . . Time . | . . . . . Total Part Build Rating . | . . . . . Parts Repaired . | . . . . . Time . | . . . . . Parts Recycled . | . . . . . Recycled Matter . | . . . . . Retrieved Matter . | . . . . . Retrieved Components . | . . . . . Parts Scanalyzed . | . . . . . Part Schematics Acquired . | . . . . . Parts Damaged . | . . . . . Bothacking | -11 -10 -10 -10 -9 ------------ Run | Jun Mat Min Exi Min Used RIF Installer . | . . . . . Robots Hacked . | . . . . . Non-combat . | . . . . . Combat . | . . . . . Robot Hacks Applied . | . . . . . Relay Couplers Released . | . . . . . Fabnet Peak Effective % . | . . . . . Robots Rewired . | . . . . . Allies Hacked . | . . . . . Hacks Repelled . | . . . . . Allies | -11 -10 -10 -10 -9 -------- Run | Jun Mat Min Exi Min Total Allies 3 | . 1 2 . . Largest Group 2 | . 1 2 2 . Highest-Rated Group 43 | . 10 43 43 . Highest-Rated Ally 31 | . 10 31 31 . Total Orders . | . . . . . Ally Attacks 4 | . . 4 . . Total Damage 61 | . . 61 . . Kills . | . . . . . Allies Corrupted . | . . . . . Allies Melted . | . . . . . Intel | -11 -10 -10 -10 -9 ------- Run | Jun Mat Min Exi Min Robot Analysis Total 4 | . 4 . . . Derelict Logs Recovered 2 | . . 1 . 1 Drone Launches . | . . . . . Drone Recoveries . | . . . . . Exploration | -11 -10 -10 -10 -9 ------------- Run | Jun Mat Min Exi Min Turns Passed 1941 | . 1158 460 104 219 Spaces Moved 2614 | 1 1430 713 249 221 Core 382 | . 382 . . . Treads . | . . . . . Legs 27 | 1 26 . . . Wheels . | . . . . . Hover . | . . . . . Flight 2205 | . 1022 713 249 221 Fastest Speed 37 | 120 37 37 37 37 Average Speed 45 | 120 51 37 37 38 Slowest Speed 120 | 120 120 37 37 120 Overloaded Moves . | . . . . . Propulsion Burnouts . | . . . . . Robots Hopped 15 | . 4 4 . 7 Cave-ins Triggered . | . . . . . Exploration Rate (%) 65 | 2 97 99 68 61 Regions Visited 4 Branch Regions 3 Pre-discovered Areas 2 | . 1 1 . . Known Exits Taken 3 | . 1 1 1 . Unknown Exits Taken 1 | 1 . . . . Scrap Searched 3 | . . 1 . 2 Spaces Dug 10 | . 10 . . . Terrain Destroyed 474 | . 441 14 . 19 Melee . | . . . . . Projectile 1 | . . . . 1 AOE 473 | . 441 14 . 18 Terrain Rammed . | . . . . . Walls Destroyed . | . . . . . Machines Disabled . | . . . . . Actions | -11 -10 -10 -10 -9 --------- Run | Jun Mat Min Exi Min Total 3196 | . 1758 871 260 307 Wait 358 | . 214 112 9 23 Move 2584 | . 1421 705 248 210 Hop 11 | . 4 3 . 4 Pick Up 5 | . . . 1 4 Fast Attach 19 | . 11 2 1 5 Attach 1 | . . . . 1 Detach 4 | . . . . 4 Swap 5 | . 1 . . 4 Drop 16 | . 8 1 1 6 Fire 147 | . 87 33 . 27 Melee 13 | . . . . 13 Ram . | . . . . . Kick . | . . . . . Crush . | . . . . . Escape Stasis . | . . . . . Rewire . | . . . . . Trap . | . . . . . Miscellaneous 33 | . 12 15 . 6 Route ------- -11/Junkyard -10/Materials (discovered 5 exits: *Mat x3 / *Min x2) -10/Mines (discovered 3 exits: *Mat x2 / *Exi) -10/Exiles -9/Mines (discovered 1 exit: [*Mat]) History --------- Turn | Location | Event 1 | -11/Junkyard | Discovered new exit (range 0) 1 | -11/Junkyard | Entered Materials 4 | -10/Materials | Upgraded with Propulsion slot (x2) 4 | -10/Materials | Upgraded with Utility slot (x2) 301 | -10/Materials | Build established: Mutant 440 | -10/Materials | Reached level 2 476 | -10/Materials | Discovered new exit (range 16) 479 | -10/Materials | Discovered new exit (range 14) 519 | -10/Materials | Identified exit to Mines 519 | -10/Materials | Central database locked down 640 | -10/Materials | Discovered new exit (range 5) 642 | -10/Materials | Identified exit to Materials 652 | -10/Materials | Reached level 3 792 | -10/Materials | Build established: Hacker-Mutant 1159 | -10/Materials | Entered Mines 1160 | -10/Mines | Learned location of Storage (-7) 1161 | -10/Mines | Reached level 4 1165 | -10/Mines | Learned 8 Materials zone layouts 1194 | -10/Mines | Assembled infested the area 1195 | -10/Mines | Found a damaged Exp. Sensor Array with a note attached 1196 | -10/Mines | Found Prototype Device 1196 | -10/Mines | Identified Exp. Sensor Array 1214 | -10/Mines | Met 8R-AWN 1234 | -10/Mines | Upgraded with Utility slot (x1) 1335 | -10/Mines | Discovered exit to Materials (range 10) 1390 | -10/Mines | Discovered exit to Materials (range 7) 1569 | -10/Mines | Discovered new exit (range 5) 1570 | -10/Mines | Identified exit to Exiles 1619 | -10/Mines | Entered Exiles 1619 | -10/Exiles | Accompanied by 2 allies 1638 | -10/Exiles | Welcomed by 8R-AWN 1644 | -10/Exiles | Met EX-HEX 1649 | -10/Exiles | Led the pair of lost Derelicts to a safe place 1655 | -10/Exiles | Met EX-BIN 1659 | -10/Exiles | Reached level 5 1659 | -10/Exiles | Aligned with FarCom system 1659 | -10/Exiles | Given EX-Vault access code 1668 | -10/Exiles | Opened EX-Vault 1670 | -10/Exiles | Found Superbattery 1681 | -10/Exiles | Warned to stay clear of 0b10 Research branches 1706 | -10/Exiles | Met EX-DEC 1719 | -10/Exiles | Discovered new exit (range 14) 1723 | -10/Exiles | Identified exit to Mines 1723 | -10/Exiles | Left Exiles lab with Superbattery 1723 | -10/Exiles | Entered Mines 1765 | -9/Mines | Learned location of 1 exit from Proximity Caves 1776 | -9/Mines | Discovered new exit (range 9) 1857 | -9/Mines | Core integrity fell below 50% 1881 | -9/Mines | Met a Derelict who couldn't figure out how to use a Trap Extractor 1903 | -9/Mines | Reached level 6 1906 | -9/Mines | Core integrity fell below 20% 1942 | -9/Mines | Destroyed by G-34 Mercenary with Small Laser Last Messages --------------- 01901_ Acquired Flak Gun. 01903_ G-34 Mercenary suffers critical hit (Smash). 01903_ Destroyed Heat Sink. 01903_ G-34 Mercenary system corrupted by crushing effect. 01903_ Reached level 6. 01911_ Upgraded: Melee Accuracy (+15) 01912_ Upgraded: Melee Accuracy (+5) 01917_ G-47 Trooper destroyed. 01921_ Destroyed Lgt. Nuclear Core. 01921_ G-47 Trooper system corrupted by crushing effect. 01922_ G-47 Trooper system terminally corrupted. 01925_ Destroyed Sml. Laser. 01925_ G-34 Mercenary system corrupted by crushing effect. 01932_ G-34 Mercenary destroyed. 01936_ Destroyed Aluminum Leg. 01936_ G-47 Trooper system corrupted by crushing effect. 01937_ Critical hit (Burn: +37). 01939_ Particle Gun fried. 01939_ G-47 Trooper destroyed. 01941_ G-34 Mercenary destroyed. Map ----- +----------------------------------------------------+ | | | | | | | | | | | | | | | | | | | | | | | | | | | | | | | | | | | ????????????????????????????????????????????????? | | ????????????????????????????????????????????????? | | ????????????????????????????????????????????????? | | #####??????####?????????????????????????????????? | | #####?## ##????????????????????? #?????????? | | ### #?????????????????? #?????????? | | ########?######## #?????????? | | g #?#==% #????????? | | g ###@%= ###?????????????? | | # ## ##### # =g![%% ##???????????????? | | ## #### ##### ############????????????????? | | ?### #??## ## ##??????????????????????????? | | ???## ##???# ##?????????????????????????? | | ########?#### #?????????????????????????? | | # ##??##""## #?????????????????????????? | | [ #??#" = # ##?????????????????????????? | | #??#"]^=* ##?????????????????????????? | | #% ##??#" ![= #?????????????????????????? | | # #???#"= !# #????????????????????????? | | ## ##???##""## #????????????????????????? | | ??##?????####### ##????????????????????????? | | ???????????????# ###?????????????????????????? | | ???????????????## ##???????????????????????????? | | ????????????????####????????????????????????????? | | ????????????????????????????????????????????????? | | ????????????????????????????????????????????????? | | ????????????????????????????????????????????????? | | ????????????????????????????????????????????????? | | ????????????????????????????????????????????????? | | ????????????????????????????????????????????????? | | ????????????????????????????????????????????????? | | ????????????????????????????????????????????????? | | ????????????????????????????????????????????????? | +----------------------------------------------------+ Best States ------------- Heat Dissipation 25 Energy Generation 15 Energy Capacity 1625 Matter Stores 300 Matter Capacity 300 Sight Range 16 Robot Scan Range 20 Terrain Scan Density 10 Resistance: EX 25 Melee Speed Boost 20 Evasion (%) 62 Melee Accuracy 6 Offensive Hacking 25 Defensive Hacking 10 Item Schematics ----------------- None Robot Schematics ------------------ None Fabricated ------------ Nothing Alien Tech Used ----------------- None Achievements -------------- None Challenges ------------ None RPGLIKE | -11 -10 -10 -10 -9 --------- Run | Jun Mat Min Exi Min Levels Raised 5 | . 2 1 1 1 XP Earned 11210 | 3000 4333 1459 350 2068 XP Spent 9900 | . 5900 1100 1500 1400 Upgrades 22 | . 14 1 3 4 Propulsion Slot 2 | . 2 . . . Utility Slot 3 | . 2 1 . . Mass Support 1 | . 1 . . . Inventory Capacity 3 | . . . 3 . Ranged Accuracy 2 | . 2 . . . Melee Accuracy 4 | . . . . 4 Hack Attack % 3 | . 3 . . . Hack Defense % 2 | . 2 . . . KI Damage % 1 | . 1 . . . EX Damage % 1 | . 1 . . . Protomatter Created 428 | . 211 34 . 183 Integrity Restored 660 | . 217 308 . 135 Core 657 | . 214 308 . 135 Parts 3 | . 3 . . . Protomatter Decayed 78 | . 56 22 . . Game ------ Seed DrainedMolecularBoomstick Manual? 0 Play Time 00:29:52 Cumulative 502.7 hours Start 2023.03.26 @ 22:51:35 End 2023.03.26 @ 23:17:43 Sessions 1 Manual Loads 0 Difficulty Rogue Special Mode Winter2019/RPGLIKE Game No. 537 Rogue 537 Adventurer 0 Explorer 0 Win Type - Total 1 Types 1/0/0/0/0/0/0/0/0 Lore% 61 Gallery% 82 Achievement% 65 Wizard Run 0 Options --------- ASCII 0 Keyboard 0 Movement Mouse Keybinds 0 Fullscreen 2 Font 24/Smallcaps Map View 76x50 Tactical HUD 1 Map Filters NONE Filters NONE Steam 1 RUN: ffa71d44-3327-4975-8b95-4b1c42accc6a